2CCN - Level 2 Cost Centre Name,,9CCN - Level 9 Cost Centre Name,9CCC - Level 9 Cost Centre Code,9AN - Level 9 Account Name,9AC - Level 9 Account Code,Date posted,Date of transaction,Merchant Name,Merchant City,Merchant State,Merchant Zip Code,Originating Account Name,Originating Account Number,MCC/SIC Code,MCC Description,Original Amount,Currency,Conversion Rate,Billed Amount,Debit Credit,Reference Number,Statement Cycle,Account Name
Gloucester City Council,23UE,Museum of Gloucester,MU002,Catering Provisions,3103,03/09/2018,31/08/2018,ASDA SUPERSTORE,GLOUCESTER,GBR,GL1 1DS,REDACTED,556*********2362,5411,"GROCERY STORES, SUPERMARKETS",2.96,Pound Sterling (826),1,2.96,Debit,8.53778E+22,02/10/2018,GLOUCESTER CC
Gloucester City Council,23UE,Museum of Gloucester,MU002,Catering Provisions,3103,03/09/2018,02/09/2018,AMZN Mktp UK,800-279-6620,LUX,L2338,REDACTED,556*********2362,5942,BOOK STORES,67.96,Pound Sterling (826),1,67.96,Debit,5.52047E+22,02/10/2018,GLOUCESTER CC
Gloucester City Council,23UE,Museum of Gloucester,MU002,General Supplies/Materials,3025,07/09/2018,06/09/2018,Amazon.co.uk,AMAZON.CO.UK,LUX,L2338,REDACTED,556*********2362,5969,ALL OTHER DIRECT MARKETERS,12.7,Pound Sterling (826),1,12.7,Debit,5.52047E+22,02/10/2018,GLOUCESTER CC
Gloucester City Council,23UE,Eastgate Market,MK003,Equipment and Furniture,3001,10/09/2018,07/09/2018,WH SMITH,GLOUCESTER,GBR,GL1 1NZ,REDACTED,556*********2362,5994,NEWS DEALERS AND NEWSSTANDS,4.99,Pound Sterling (826),1,4.99,Debit,2.53778E+22,02/10/2018,GLOUCESTER CC
Gloucester City Council,23UE,Gloucester Life Museum,MU005,Catering Provisions,3103,10/09/2018,08/09/2018,ASDA SUPERSTORE,GLOUCESTER,GBR,GL1 1DS,REDACTED,556*********2362,5411,"GROCERY STORES, SUPERMARKETS",14.11,Pound Sterling (826),1,14.11,Debit,1.53778E+22,02/10/2018,GLOUCESTER CC
Gloucester City Council,23UE,Gloucester Life Museum,MU005,Catering Provisions,3103,13/09/2018,12/09/2018,ASDA SUPERSTORE,GLOUCESTER,GBR,GL1 1DS,REDACTED,556*********2362,5411,"GROCERY STORES, SUPERMARKETS",2.67,Pound Sterling (826),1,2.67,Debit,4.53778E+22,02/10/2018,GLOUCESTER CC
Gloucester City Council,23UE,Museum of Gloucester,MU002,Catering Provisions,3103,14/09/2018,13/09/2018,ASDA SUPERSTORE,GLOUCESTER,GBR,GL1 1DS,REDACTED,556*********2362,5411,"GROCERY STORES, SUPERMARKETS",1.48,Pound Sterling (826),1,1.48,Debit,4.53778E+22,02/10/2018,GLOUCESTER CC
Gloucester City Council,23UE,Museum of Gloucester,MU002,Catering Provisions,3103,17/09/2018,15/09/2018,ASDA SUPERSTORE,GLOUCESTER,GBR,GL1 1DS,REDACTED,556*********2362,5411,"GROCERY STORES, SUPERMARKETS",31.05,Pound Sterling (826),1,31.05,Debit,1.53778E+22,02/10/2018,GLOUCESTER CC
Gloucester City Council,23UE,Museum of Gloucester,MU002,General Supplies/Materials,3025,17/09/2018,16/09/2018,LYCO DIRECT LTD,MILTON KEYNES,GBR,MK1 1ZR,REDACTED,556*********2362,5722,HOUSEHOLD APPLIANCE STORES,73.07,Pound Sterling (826),1,73.07,Debit,6.54252E+22,02/10/2018,GLOUCESTER CC
Gloucester City Council,23UE,Museum of Gloucester,MU002,General Supplies/Materials,3025,20/09/2018,19/09/2018,WH SMITH,GLOUCESTER,GBR,GL1 1NZ,REDACTED,556*********2362,5994,NEWS DEALERS AND NEWSSTANDS,11.96,Pound Sterling (826),1,11.96,Debit,2.53778E+22,02/10/2018,GLOUCESTER CC
Gloucester City Council,23UE,Museum of Gloucester,MU002,Catering Provisions,3103,24/09/2018,22/09/2018,ASDA SUPERSTORE,GLOUCESTER,GBR,GL1 1DS,REDACTED,556*********2362,5411,"GROCERY STORES, SUPERMARKETS",20.16,Pound Sterling (826),1,20.16,Debit,1.53778E+22,02/10/2018,GLOUCESTER CC
Gloucester City Council,23UE,Gloucester Life Museum,MU005,Catering Provisions,3103,01/10/2018,29/09/2018,ASDA SUPERSTORE,GLOUCESTER,GBR,GL1 1DS,REDACTED,556*********2362,5411,"GROCERY STORES, SUPERMARKETS",20.64,Pound Sterling (826),1,20.64,Debit,1.53778E+22,02/10/2018,GLOUCESTER CC
Gloucester City Council,23UE,Managing Director & Directors,MT001,Public Transport - Staff,2402,20/09/2018,19/09/2018,TRAINLINE,LONDON,,,REDACTED,471*********7903,4112,PASSENGER RAILWAYS,86,Pound Sterling (826),1,86,Debit,7.49989E+22,02/10/2018,GLOUCESTER CC
Gloucester City Council,23UE,Countryside Unit,EP003,Vehicle Repairs and Maintenance,2103,05/09/2018,04/09/2018,PAYPAL *LANDROVERSP,35314369001,GBR,TW91EH,REDACTED,556*********6734,5533,"AUTOMOTIVE PARTS, ACCESSORIES STORES",4.45,Pound Sterling (826),1,4.45,Debit,8.51301E+22,02/10/2018,GLOUCESTER CC
Gloucester City Council,23UE,Countryside Unit,EP003,Vehicle Repairs and Maintenance,2103,12/09/2018,11/09/2018,TAYNA LTD,ABERGELE,GBR,LL22 7AR,REDACTED,556*********6734,5533,"AUTOMOTIVE PARTS, ACCESSORIES STORES",47.98,Pound Sterling (826),1,47.98,Debit,1.52763E+22,02/10/2018,GLOUCESTER CC
Gloucester City Council,23UE,Countryside Unit,EP003,Vehicle Repairs and Maintenance,2103,27/09/2018,26/09/2018,PAYPAL *SALES,35314369001,GBR,TW91EH,REDACTED,556*********6734,5533,"AUTOMOTIVE PARTS, ACCESSORIES STORES",8.9,Pound Sterling (826),1,8.9,Debit,8.51301E+22,02/10/2018,GLOUCESTER CC
Gloucester City Council,23UE,The Arbor,CC001,Equipment and Furniture,3001,03/09/2018,31/08/2018,Amazon.co.uk,AMAZON.CO.UK,LUX,L2338,REDACTED,556*********1155,5969,ALL OTHER DIRECT MARKETERS,20.67,Pound Sterling (826),1,20.67,Debit,5.52047E+22,02/10/2018,GLOUCESTER CC
Gloucester City Council,23UE,Guildhall Bar and Caf�,GH005,Catering Provisions,3103,04/09/2018,03/09/2018,POUNDLAND LTD 1167,GLOUCESTER,,GL11XH,REDACTED,556*********1155,5310,DISCOUNT STORES,3,Pound Sterling (826),1,3,Debit,8.54815E+22,02/10/2018,GLOUCESTER CC
Gloucester City Council,23UE,Blackfriars ,GH010,Equipment and Furniture,3001,05/09/2018,04/09/2018,WILKO RETAIL LIMIT,GLOUCESTER 14,,GL11SL,REDACTED,556*********1155,5722,HOUSEHOLD APPLIANCE STORES,18,Pound Sterling (826),1,18,Debit,8.54815E+22,02/10/2018,GLOUCESTER CC
Gloucester City Council,23UE,Guildhall Bar and Caf�,GH005,Catering Provisions,3103,10/09/2018,07/09/2018,BOOKER LIMITED GLOUCES,GLOUCESTER,GBR,GL4 3RT,REDACTED,556*********1155,5811,CATERERS,53.16,Pound Sterling (826),1,53.16,Debit,5.51842E+22,02/10/2018,GLOUCESTER CC
Gloucester City Council,23UE,Guildhall Bar and Caf�,GH005,Catering Provisions,3103,11/09/2018,10/09/2018,SAINSBURYS 0771,GLOUCESTER,GBR,GL1 2AG,REDACTED,556*********1155,5411,"GROCERY STORES, SUPERMARKETS",49.05,Pound Sterling (826),1,49.05,Debit,2.54252E+22,02/10/2018,GLOUCESTER CC
Gloucester City Council,23UE,Guildhall Bar and Caf�,GH005,Catering Provisions,3103,11/09/2018,10/09/2018,ICELAND,GLOUCESTER,GBR,GL1 1SA,REDACTED,556*********1155,5411,"GROCERY STORES, SUPERMARKETS",8,Pound Sterling (826),1,8,Debit,2.53778E+22,02/10/2018,GLOUCESTER CC
Gloucester City Council,23UE,Guildhall Bar and Caf�,GH005,Catering Provisions,3103,11/09/2018,10/09/2018,ICELAND,GLOUCESTER,GBR,GL1 1SA,REDACTED,556*********1155,5411,"GROCERY STORES, SUPERMARKETS",7.9,Pound Sterling (826),1,7.9,Debit,2.53778E+22,02/10/2018,GLOUCESTER CC
Gloucester City Council,23UE,Guildhall Bar and Caf�,GH005,Catering Provisions,3103,13/09/2018,12/09/2018,ICELAND,GLOUCESTER,GBR,GL1 1SA,REDACTED,556*********1155,5411,"GROCERY STORES, SUPERMARKETS",6,Pound Sterling (826),1,6,Debit,2.53778E+22,02/10/2018,GLOUCESTER CC
Gloucester City Council,23UE,Guildhall Bar and Caf�,GH005,Catering Provisions,3103,13/09/2018,12/09/2018,POUNDLAND LTD 1167,GLOUCESTER,,GL11XH,REDACTED,556*********1155,5310,DISCOUNT STORES,4,Pound Sterling (826),1,4,Debit,8.54815E+22,02/10/2018,GLOUCESTER CC
Gloucester City Council,23UE,Guildhall Bar and Caf�,GH005,Catering Provisions,3103,19/09/2018,18/09/2018,ASDA SUPERSTORE,GLOUCESTER,GBR,GL1 1DS,REDACTED,556*********1155,5411,"GROCERY STORES, SUPERMARKETS",81.89,Pound Sterling (826),1,81.89,Debit,4.53778E+22,02/10/2018,GLOUCESTER CC
Gloucester City Council,23UE,Guildhall Bar and Caf�,GH005,Catering Provisions,3103,19/09/2018,18/09/2018,ICELAND,GLOUCESTER,GBR,GL1 1SA,REDACTED,556*********1155,5411,"GROCERY STORES, SUPERMARKETS",8.75,Pound Sterling (826),1,8.75,Debit,2.53778E+22,02/10/2018,GLOUCESTER CC
Gloucester City Council,23UE,Guildhall Bar and Caf�,GH005,Catering Provisions,3103,19/09/2018,18/09/2018,ICELAND,GLOUCESTER,GBR,GL1 1SA,REDACTED,556*********1155,5411,"GROCERY STORES, SUPERMARKETS",2,Pound Sterling (826),1,2,Debit,2.53778E+22,02/10/2018,GLOUCESTER CC
Gloucester City Council,23UE,Guildhall Bar and Caf�,GH005,Equipment and Furniture,3001,20/09/2018,19/09/2018,AMZN Mktp UK,800-279-6620,LUX,L2338,REDACTED,556*********1155,5942,BOOK STORES,41.93,Pound Sterling (826),1,41.93,Debit,5.52047E+22,02/10/2018,GLOUCESTER CC
Gloucester City Council,23UE,The Arbor,CC001,Equipment and Furniture,3001,20/09/2018,19/09/2018,Amazon.co.uk,AMAZON.CO.UK,LUX,L2338,REDACTED,556*********1155,5969,ALL OTHER DIRECT MARKETERS,9.62,Pound Sterling (826),1,9.62,Debit,5.52047E+22,02/10/2018,GLOUCESTER CC
Gloucester City Council,23UE,Guildhall Bar and Caf�,GH005,Equipment and Furniture,3001,20/09/2018,19/09/2018,AMZN Mktp UK,800-279-6620,LUX,L2338,REDACTED,556*********1155,5942,BOOK STORES,4.6,Pound Sterling (826),1,4.6,Debit,5.52047E+22,02/10/2018,GLOUCESTER CC
Gloucester City Council,23UE,Guildhall Bar and Caf�,GH005,Equipment and Furniture,3001,20/09/2018,19/09/2018,AMZN MKTP UK AMAZON.CO,AMAZON.CO.UK,LUX,,REDACTED,556*********1155,5942,BOOK STORES,39.95,Pound Sterling (826),1,39.95,Debit,8.53892E+22,02/10/2018,GLOUCESTER CC
Gloucester City Council,23UE,Guildhall Events,GH002,Catering Provisions,3103,24/09/2018,21/09/2018,ASDA SUPERSTORE,GLOUCESTER,GBR,GL1 1DS,REDACTED,556*********1155,5411,"GROCERY STORES, SUPERMARKETS",129.63,Pound Sterling (826),1,129.63,Debit,4.53778E+22,02/10/2018,GLOUCESTER CC
Gloucester City Council,23UE,Guildhall Events,GH002,Catering Provisions,3103,24/09/2018,21/09/2018,BOOKER LIMITED GLOUCES,GLOUCESTER,GBR,GL4 3RT,REDACTED,556*********1155,5811,CATERERS,28.68,Pound Sterling (826),1,28.68,Debit,5.51842E+22,02/10/2018,GLOUCESTER CC
Gloucester City Council,23UE,Guildhall Bar and Caf�,GH005,Catering Provisions,3103,27/09/2018,26/09/2018,SAINSBURYS SACAT 0608,GLOUCESTER,GBR,GL4 3RT,REDACTED,556*********1155,5411,"GROCERY STORES, SUPERMARKETS",16.2,Pound Sterling (826),1,16.2,Debit,2.54252E+22,02/10/2018,GLOUCESTER CC
Gloucester City Council,23UE,Guildhall Bar and Caf�,GH005,Catering Provisions,3103,27/09/2018,26/09/2018,SAINSBURYS SACAT 0771,GLOUCESTER,GBR,GL1 2AG,REDACTED,556*********1155,5411,"GROCERY STORES, SUPERMARKETS",4.75,Pound Sterling (826),1,4.75,Debit,2.54252E+22,02/10/2018,GLOUCESTER CC
Gloucester City Council,23UE,Guildhall Bar and Caf�,GH005,Catering Provisions,3103,27/09/2018,26/09/2018,BOOKER LIMITED GLOUCES,GLOUCESTER,GBR,GL4 3RT,REDACTED,556*********1155,5811,CATERERS,94.26,Pound Sterling (826),1,94.26,Debit,5.51842E+22,02/10/2018,GLOUCESTER CC
Gloucester City Council,23UE,Guildhall Bar and Caf�,GH005,Catering Provisions,3103,27/09/2018,26/09/2018,HOLLAND & BARRETT,GLOUCESTER,,GL1 1PD,REDACTED,556*********1155,5999,MISCELLANEOUS AND RETAIL STORES,6.98,Pound Sterling (826),1,6.98,Debit,8.54815E+22,02/10/2018,GLOUCESTER CC
Gloucester City Council,23UE,Guildhall Bar and Caf�,GH005,Catering Provisions,3103,28/09/2018,27/09/2018,SAINSBURYS SACAT 0771,GLOUCESTER,GBR,GL1 2AG,REDACTED,556*********1155,5411,"GROCERY STORES, SUPERMARKETS",16.49,Pound Sterling (826),1,16.49,Debit,2.54252E+22,02/10/2018,GLOUCESTER CC
Gloucester City Council,23UE,Guildhall Bar and Caf�,GH005,Catering Provisions,3103,01/10/2018,29/09/2018,SAINSBURYS SACAT 0771,GLOUCESTER,GBR,GL1 2AG,REDACTED,556*********1155,5411,"GROCERY STORES, SUPERMARKETS",5.45,Pound Sterling (826),1,5.45,Debit,9.54252E+22,02/10/2018,GLOUCESTER CC
Gloucester City Council,23UE,Gloucester Guildhall,GH001,Equipment and Furniture,3001,01/10/2018,29/09/2018,B & Q 1179,GLOUCESTER,,GL12SG,REDACTED,556*********1155,5211,LUMBER AND BUILDING MATERIALS STORES,8,Pound Sterling (826),1,8,Debit,8.54815E+22,02/10/2018,GLOUCESTER CC
Gloucester City Council,23UE,Guildhall Bar and Caf�,GH005,Catering Provisions,3103,01/10/2018,29/09/2018,HOLLAND & BARRETT,GLOUCESTER,,GL1 1PD,REDACTED,556*********1155,5999,MISCELLANEOUS AND RETAIL STORES,3.49,Pound Sterling (826),1,3.49,Debit,8.54815E+22,02/10/2018,GLOUCESTER CC
Gloucester City Council,23UE,Guildhall Bar and Caf�,GH005,Catering Provisions,3103,01/10/2018,29/09/2018,ASDA GROCERIES ONLINE,INTERNET,GBR,LS11 5AD,REDACTED,556*********1155,5411,"GROCERY STORES, SUPERMARKETS",130.76,Pound Sterling (826),1,130.76,Debit,2.53778E+22,02/10/2018,GLOUCESTER CC
Gloucester City Council,23UE,Guildhall Events,GH002,Catering Provisions,3103,01/10/2018,29/09/2018,ASDA GROCERIES ONLINE,INTERNET,GBR,LS11 5AD,REDACTED,556*********1155,5411,"GROCERY STORES, SUPERMARKETS",76.47,Pound Sterling (826),1,76.47,Debit,2.53778E+22,02/10/2018,GLOUCESTER CC
Gloucester City Council,23UE,Guildhall Events,GH002,Catering Provisions,3103,01/10/2018,28/09/2018,MARKS&SPENCER PLC,GLOUCESTER,GBR,GL1 1PH,REDACTED,556*********1155,5411,"GROCERY STORES, SUPERMARKETS",2.9,Pound Sterling (826),1,2.9,Debit,8.53778E+22,02/10/2018,GLOUCESTER CC
Gloucester City Council,23UE,Guildhall Events,GH002,Catering Provisions,3103,01/10/2018,29/09/2018,TESCO STORES 6819,GLOUCESTER,GBR,GL1 1TP,REDACTED,556*********1155,5411,"GROCERY STORES, SUPERMARKETS",5.8,Pound Sterling (826),1,5.8,Debit,8.53778E+22,02/10/2018,GLOUCESTER CC
Gloucester City Council,23UE,Guildhall Bar and Caf�,GH005,Catering Provisions,3103,01/10/2018,30/09/2018,SAINSBURYS SACAT 0608,GLOUCESTER,GBR,GL4 3RT,REDACTED,556*********1155,5411,"GROCERY STORES, SUPERMARKETS",12.8,Pound Sterling (826),1,12.8,Debit,6.54252E+22,02/10/2018,GLOUCESTER CC
Gloucester City Council,23UE,Guildhall Bar and Caf�,GH005,Catering Provisions,3103,01/10/2018,30/09/2018,ICELAND,GLOUCESTER,GBR,GL1 1SA,REDACTED,556*********1155,5411,"GROCERY STORES, SUPERMARKETS",21.4,Pound Sterling (826),1,21.4,Debit,6.53778E+22,02/10/2018,GLOUCESTER CC
Gloucester City Council,23UE,Guildhall Bar and Caf�,GH005,Catering Provisions,3103,01/10/2018,30/09/2018,TESCO STORES LTD 6498,GLOUCESTER,GBR,GL1 1SZ,REDACTED,556*********1155,5411,"GROCERY STORES, SUPERMARKETS",2.18,Pound Sterling (826),1,2.18,Debit,5.53778E+22,02/10/2018,GLOUCESTER CC
Gloucester City Council,23UE,Guildhall Bar and Caf�,GH005,Catering Provisions,3103,01/10/2018,30/09/2018,BOOKER LIMITED GLOUCES,GLOUCESTER,GBR,GL4 3RT,REDACTED,556*********1155,5811,CATERERS,40.77,Pound Sterling (826),1,40.77,Debit,5.51842E+22,02/10/2018,GLOUCESTER CC
Gloucester City Council,23UE,Guildhall Events,GH002,Catering Provisions,3103,01/10/2018,29/09/2018,ASDA GROCERIES ONLINE,INTERNET,GBR,LS11 5AD,REDACTED,556*********1155,5411,"GROCERY STORES, SUPERMARKETS",-6.44,Pound Sterling (826),1,-6.44,Credit,2.53778E+22,02/10/2018,GLOUCESTER CC
Gloucester City Council,23UE,Shopmobility,SM001,Equipment and Furniture,3001,03/09/2018,02/09/2018,AMZN Mktp UK,800-279-6620,LUX,L2338,REDACTED,556*********8997,5942,BOOK STORES,21.37,Pound Sterling (826),1,21.37,Debit,5.52047E+22,02/10/2018,GLOUCESTER CC
Gloucester City Council,23UE,Docks Complex - Services,AM006,Hospitality & Refreshments,3104,12/09/2018,11/09/2018,TESCO STORES 6819,GLOUCESTER,GBR,GL1 1TP,REDACTED,556*********4301,5411,"GROCERY STORES, SUPERMARKETS",2,Pound Sterling (826),1,2,Debit,1.53778E+22,02/10/2018,GLOUCESTER CC
Gloucester City Council,23UE,Docks Complex - Services,AM006,Hospitality & Refreshments,3104,17/09/2018,14/09/2018,TESCO STORES 6819,GLOUCESTER,GBR,GL1 1TP,REDACTED,556*********4301,5411,"GROCERY STORES, SUPERMARKETS",2,Pound Sterling (826),1,2,Debit,1.53778E+22,02/10/2018,GLOUCESTER CC
Gloucester City Council,23UE,Docks Complex - Services,AM006,Hospitality & Refreshments,3104,04/09/2018,03/09/2018,SAINSBURYS SACAT 2221,GLOUCESTER,GBR,GL2 5SA,REDACTED,556*********6128,5411,"GROCERY STORES, SUPERMARKETS",8,Pound Sterling (826),1,8,Debit,2.54252E+22,02/10/2018,GLOUCESTER CC
Gloucester City Council,23UE,Docks Complex - Services,AM006,Hospitality & Refreshments,3104,18/09/2018,17/09/2018,SAINSBURYS SACAT 2221,GLOUCESTER,GBR,GL2 5SA,REDACTED,556*********6128,5411,"GROCERY STORES, SUPERMARKETS",3.1,Pound Sterling (826),1,3.1,Debit,2.54252E+22,02/10/2018,GLOUCESTER CC
Gloucester City Council,23UE,Members Support,DS002,Mileage and Travel Allowances,2401,06/09/2018,05/09/2018,Trainline,London,GBR,1445,REDACTED,556*********3029,4112,PASSENGER RAILWAYS,130.7,Pound Sterling (826),1,130.7,Debit,8.51301E+22,02/10/2018,GLOUCESTER CC
Gloucester City Council,23UE,Council Streetcare Team,NE002,External Training Course Fees,550,27/09/2018,26/09/2018,EB *SEVERN ESTUARY FOR,801-413-7200,IRL,DUBLIN 8,REDACTED,556*********3029,7399,BUSINESS SERVICES NOT ELSEWHERE CLASSIFIED,59.88,Pound Sterling (826),1,59.88,Debit,1.52763E+22,02/10/2018,GLOUCESTER CC
Gloucester City Council,23UE,Housing Services,HS001,B&B Payments,1303,03/09/2018,31/08/2018,TRAVELODGE GB0000,THAME,,OX9 3AT,REDACTED,556*********6959,3615,TRAVELODGE,175,Pound Sterling (826),1,175,Debit,5.55044E+22,02/10/2018,GLOUCESTER CC
Gloucester City Council,23UE,Housing Services,HS001,B&B Payments,1303,03/09/2018,31/08/2018,TRAVELODGE GB0000,THAME,,OX9 3AT,REDACTED,556*********6959,3615,TRAVELODGE,308,Pound Sterling (826),1,308,Debit,5.55044E+22,02/10/2018,GLOUCESTER CC
Gloucester City Council,23UE,Housing Services,HS001,B&B Payments,1303,03/09/2018,31/08/2018,TRAVELODGE GB0000,THAME,,OX9 3AT,REDACTED,556*********6959,3615,TRAVELODGE,175,Pound Sterling (826),1,175,Debit,5.55044E+22,02/10/2018,GLOUCESTER CC
Gloucester City Council,23UE,Housing Services,HS001,B&B Payments,1303,04/09/2018,03/09/2018,TRAVELODGE GB0000,THAME,,OX9 3AT,REDACTED,556*********6959,3615,TRAVELODGE,216,Pound Sterling (826),1,216,Debit,5.55044E+22,02/10/2018,GLOUCESTER CC
Gloucester City Council,23UE,Housing Services,HS001,B&B Payments,1303,04/09/2018,03/09/2018,TRAVELODGE GB0000,THAME,,OX9 3AT,REDACTED,556*********6959,3615,TRAVELODGE,286,Pound Sterling (826),1,286,Debit,5.55044E+22,02/10/2018,GLOUCESTER CC
Gloucester City Council,23UE,Housing Services,HS001,B&B Payments,1303,04/09/2018,03/09/2018,TRAVELODGE GB0000,THAME,,OX9 3AT,REDACTED,556*********6959,3615,TRAVELODGE,270,Pound Sterling (826),1,270,Debit,5.55044E+22,02/10/2018,GLOUCESTER CC
Gloucester City Council,23UE,Housing Services,HS001,B&B Payments,1303,04/09/2018,03/09/2018,TRAVELODGE GB0000,THAME,,OX9 3AT,REDACTED,556*********6959,3615,TRAVELODGE,220,Pound Sterling (826),1,220,Debit,5.55044E+22,02/10/2018,GLOUCESTER CC
Gloucester City Council,23UE,Housing Services,HS001,B&B Payments,1303,04/09/2018,03/09/2018,TRAVELODGE GB0000,THAME,,OX9 3AT,REDACTED,556*********6959,3615,TRAVELODGE,423,Pound Sterling (826),1,423,Debit,5.55044E+22,02/10/2018,GLOUCESTER CC
Gloucester City Council,23UE,Housing Services,HS001,B&B Payments,1303,04/09/2018,03/09/2018,TRAVELODGE GB0000,THAME,,OX9 3AT,REDACTED,556*********6959,3615,TRAVELODGE,137,Pound Sterling (826),1,137,Debit,5.55044E+22,02/10/2018,GLOUCESTER CC
Gloucester City Council,23UE,Housing Services,HS001,B&B Payments,1303,05/09/2018,04/09/2018,TRAVELODGE GB0000,THAME,,OX9 3AT,REDACTED,556*********6959,3615,TRAVELODGE,349,Pound Sterling (826),1,349,Debit,5.55044E+22,02/10/2018,GLOUCESTER CC
Gloucester City Council,23UE,Housing Services,HS001,B&B Payments,1303,05/09/2018,04/09/2018,TRAVELODGE GB0000,THAME,,OX9 3AT,REDACTED,556*********6959,3615,TRAVELODGE,187,Pound Sterling (826),1,187,Debit,5.55044E+22,02/10/2018,GLOUCESTER CC
Gloucester City Council,23UE,Housing Services,HS001,B&B Payments,1303,05/09/2018,04/09/2018,TRAVELODGE GB0000,THAME,,OX9 3AT,REDACTED,556*********6959,3615,TRAVELODGE,349,Pound Sterling (826),1,349,Debit,5.55044E+22,02/10/2018,GLOUCESTER CC
Gloucester City Council,23UE,Housing Services,HS001,Public Transport - Staff,2402,07/09/2018,06/09/2018,Trainline,London,GBR,1445,REDACTED,556*********6959,4112,PASSENGER RAILWAYS,103,Pound Sterling (826),1,103,Debit,8.51301E+22,02/10/2018,GLOUCESTER CC
Gloucester City Council,23UE,Housing Services,HS001,B&B Payments,1303,07/09/2018,05/09/2018,PREMIER INN44521220,GLOUCESTER,,GL4 3HR,REDACTED,556*********6959,3811,PREMIER INN,317.5,Pound Sterling (826),1,317.5,Debit,5.5542E+22,02/10/2018,GLOUCESTER CC
Gloucester City Council,23UE,Housing Services,HS001,B&B Payments,1303,07/09/2018,06/09/2018,TRAVELODGE GB0000,THAME,,OX9 3AT,REDACTED,556*********6959,3615,TRAVELODGE,54,Pound Sterling (826),1,54,Debit,5.55044E+22,02/10/2018,GLOUCESTER CC
Gloucester City Council,23UE,Housing Services,HS001,B&B Payments,1303,07/09/2018,06/09/2018,TRAVELODGE GB0000,THAME,,OX9 3AT,REDACTED,556*********6959,3615,TRAVELODGE,287,Pound Sterling (826),1,287,Debit,5.55044E+22,02/10/2018,GLOUCESTER CC
Gloucester City Council,23UE,Housing Services,HS001,B&B Payments,1303,10/09/2018,07/09/2018,TRAVELODGE GB0000,THAME,,OX9 3AT,REDACTED,556*********6959,3615,TRAVELODGE,310,Pound Sterling (826),1,310,Debit,5.55044E+22,02/10/2018,GLOUCESTER CC
Gloucester City Council,23UE,Housing Services,HS001,B&B Payments,1303,10/09/2018,07/09/2018,TRAVELODGE GB0000,THAME,,OX9 3AT,REDACTED,556*********6959,3615,TRAVELODGE,229,Pound Sterling (826),1,229,Debit,5.55044E+22,02/10/2018,GLOUCESTER CC
Gloucester City Council,23UE,Housing Services,HS001,B&B Payments,1303,11/09/2018,10/09/2018,TRAVELODGE GB0000,THAME,,OX9 3AT,REDACTED,556*********6959,3615,TRAVELODGE,216,Pound Sterling (826),1,216,Debit,5.55044E+22,02/10/2018,GLOUCESTER CC
Gloucester City Council,23UE,Housing Services,HS001,B&B Payments,1303,11/09/2018,10/09/2018,TRAVELODGE GB0000,THAME,,OX9 3AT,REDACTED,556*********6959,3615,TRAVELODGE,202,Pound Sterling (826),1,202,Debit,5.55044E+22,02/10/2018,GLOUCESTER CC
Gloucester City Council,23UE,Housing Services,HS001,B&B Payments,1303,11/09/2018,10/09/2018,TRAVELODGE GB0000,THAME,,OX9 3AT,REDACTED,556*********6959,3615,TRAVELODGE,112,Pound Sterling (826),1,112,Debit,5.55044E+22,02/10/2018,GLOUCESTER CC
Gloucester City Council,23UE,Housing Services,HS001,B&B Payments,1303,11/09/2018,10/09/2018,TRAVELODGE GB0000,THAME,,OX9 3AT,REDACTED,556*********6959,3615,TRAVELODGE,217,Pound Sterling (826),1,217,Debit,5.55044E+22,02/10/2018,GLOUCESTER CC
Gloucester City Council,23UE,Housing Services,HS001,B&B Payments,1303,11/09/2018,10/09/2018,TRAVELODGE GB0000,THAME,,OX9 3AT,REDACTED,556*********6959,3615,TRAVELODGE,54,Pound Sterling (826),1,54,Debit,5.55044E+22,02/10/2018,GLOUCESTER CC
Gloucester City Council,23UE,Housing Services,HS001,B&B Payments,1303,11/09/2018,10/09/2018,TRAVELODGE GB0000,THAME,,OX9 3AT,REDACTED,556*********6959,3615,TRAVELODGE,202,Pound Sterling (826),1,202,Debit,5.55044E+22,02/10/2018,GLOUCESTER CC
Gloucester City Council,23UE,Housing Services,HS001,B&B Payments,1303,11/09/2018,10/09/2018,TRAVELODGE GB0000,THAME,,OX9 3AT,REDACTED,556*********6959,3615,TRAVELODGE,261,Pound Sterling (826),1,261,Debit,5.55044E+22,02/10/2018,GLOUCESTER CC
Gloucester City Council,23UE,Housing Services,HS001,B&B Payments,1303,12/09/2018,10/09/2018,PREMIER INN 44537895,GLOUCESTER,,GL1 5SF,REDACTED,556*********6959,3811,PREMIER INN,470,Pound Sterling (826),1,470,Debit,5.5542E+22,02/10/2018,GLOUCESTER CC
Gloucester City Council,23UE,Housing Services,HS001,B&B Payments,1303,12/09/2018,11/09/2018,TRAVELODGE GB0000,THAME,,OX9 3AT,REDACTED,556*********6959,3615,TRAVELODGE,162,Pound Sterling (826),1,162,Debit,5.55044E+22,02/10/2018,GLOUCESTER CC
Gloucester City Council,23UE,Housing Services,HS001,B&B Payments,1303,12/09/2018,11/09/2018,TRAVELODGE GB0000,THAME,,OX9 3AT,REDACTED,556*********6959,3615,TRAVELODGE,444,Pound Sterling (826),1,444,Debit,5.55044E+22,02/10/2018,GLOUCESTER CC
Gloucester City Council,23UE,Housing Services,HS001,B&B Payments,1303,12/09/2018,11/09/2018,TRAVELODGE GB0000,THAME,,OX9 3AT,REDACTED,556*********6959,3615,TRAVELODGE,222,Pound Sterling (826),1,222,Debit,5.55044E+22,02/10/2018,GLOUCESTER CC
Gloucester City Council,23UE,Housing Services,HS001,B&B Payments,1303,12/09/2018,11/09/2018,TRAVELODGE GB0000,THAME,,OX9 3AT,REDACTED,556*********6959,3615,TRAVELODGE,108,Pound Sterling (826),1,108,Debit,5.55044E+22,02/10/2018,GLOUCESTER CC
Gloucester City Council,23UE,Housing Services,HS001,B&B Payments,1303,12/09/2018,11/09/2018,TRAVELODGE GB0000,THAME,,OX9 3AT,REDACTED,556*********6959,3615,TRAVELODGE,445,Pound Sterling (826),1,445,Debit,5.55044E+22,02/10/2018,GLOUCESTER CC
Gloucester City Council,23UE,Housing Services,HS001,B&B Payments,1303,13/09/2018,12/09/2018,Hotel on Booking.com,Amsterdam,NLD,1017 SG,REDACTED,556*********6959,7011,"LODGING, HOTELS, MOTELS, RESORTS",429,Pound Sterling (826),1,429,Debit,1.52657E+22,02/10/2018,GLOUCESTER CC
Gloucester City Council,23UE,Housing Services,HS001,B&B Payments,1303,13/09/2018,12/09/2018,TRAVELODGE GB0000,THAME,,OX9 3AT,REDACTED,556*********6959,3615,TRAVELODGE,336,Pound Sterling (826),1,336,Debit,5.55044E+22,02/10/2018,GLOUCESTER CC
Gloucester City Council,23UE,Housing Services,HS001,B&B Payments,1303,14/09/2018,13/09/2018,TRAVELODGE GB0000,THAME,,OX9 3AT,REDACTED,556*********6959,3615,TRAVELODGE,337,Pound Sterling (826),1,337,Debit,5.55044E+22,02/10/2018,GLOUCESTER CC
Gloucester City Council,23UE,Housing Services,HS001,B&B Payments,1303,14/09/2018,13/09/2018,TRAVELODGE GB0000,THAME,,OX9 3AT,REDACTED,556*********6959,3615,TRAVELODGE,312,Pound Sterling (826),1,312,Debit,5.55044E+22,02/10/2018,GLOUCESTER CC
Gloucester City Council,23UE,Housing Services,HS001,B&B Payments,1303,14/09/2018,13/09/2018,TRAVELODGE GB0000,THAME,,OX9 3AT,REDACTED,556*********6959,3615,TRAVELODGE,243,Pound Sterling (826),1,243,Debit,5.55044E+22,02/10/2018,GLOUCESTER CC
Gloucester City Council,23UE,Housing Services,HS001,B&B Payments,1303,14/09/2018,13/09/2018,TRAVELODGE GB0000,THAME,,OX9 3AT,REDACTED,556*********6959,3615,TRAVELODGE,411,Pound Sterling (826),1,411,Debit,5.55044E+22,02/10/2018,GLOUCESTER CC
Gloucester City Council,23UE,Housing Services,HS001,B&B Payments,1303,17/09/2018,14/09/2018,TRAVELODGE GB0000,THAME,,OX9 3AT,REDACTED,556*********6959,3615,TRAVELODGE,210,Pound Sterling (826),1,210,Debit,5.55044E+22,02/10/2018,GLOUCESTER CC
Gloucester City Council,23UE,Housing Services,HS001,B&B Payments,1303,17/09/2018,14/09/2018,TRAVELODGE GB0000,THAME,,OX9 3AT,REDACTED,556*********6959,3615,TRAVELODGE,198,Pound Sterling (826),1,198,Debit,5.55044E+22,02/10/2018,GLOUCESTER CC
Gloucester City Council,23UE,Housing Services,HS001,B&B Payments,1303,17/09/2018,14/09/2018,TRAVELODGE GB0000,THAME,,OX9 3AT,REDACTED,556*********6959,3615,TRAVELODGE,210,Pound Sterling (826),1,210,Debit,5.55044E+22,02/10/2018,GLOUCESTER CC
Gloucester City Council,23UE,Housing Services,HS001,Mileage and Travel Allowances,2401,17/09/2018,14/09/2018,NATIONAL EXPRESS LIMIT,BIRMINGHAM,,B5 6DD,REDACTED,556*********6959,4131,"BUS LINES, CHARTERS, TOUR BUSES",23.7,Pound Sterling (826),1,23.7,Debit,8.54815E+22,02/10/2018,GLOUCESTER CC
Gloucester City Council,23UE,Housing Services,HS001,B&B Payments,1303,17/09/2018,14/09/2018,TRAVELODGE GB0000,THAME,,OX9 3AT,REDACTED,556*********6959,3615,TRAVELODGE,-54,Pound Sterling (826),1,-54,Credit,5.55044E+22,02/10/2018,GLOUCESTER CC
Gloucester City Council,23UE,Housing Services,HS001,B&B Payments,1303,18/09/2018,17/09/2018,Hotel on Booking.com,Amsterdam,NLD,1017 SG,REDACTED,556*********6959,7011,"LODGING, HOTELS, MOTELS, RESORTS",394,Pound Sterling (826),1,394,Debit,1.52657E+22,02/10/2018,GLOUCESTER CC
Gloucester City Council,23UE,Housing Services,HS001,B&B Payments,1303,18/09/2018,17/09/2018,TRAVELODGE GB0000,THAME,,OX9 3AT,REDACTED,556*********6959,3615,TRAVELODGE,170,Pound Sterling (826),1,170,Debit,5.55044E+22,02/10/2018,GLOUCESTER CC
Gloucester City Council,23UE,Housing Services,HS001,B&B Payments,1303,18/09/2018,17/09/2018,TRAVELODGE GB0000,THAME,,OX9 3AT,REDACTED,556*********6959,3615,TRAVELODGE,272,Pound Sterling (826),1,272,Debit,5.55044E+22,02/10/2018,GLOUCESTER CC
Gloucester City Council,23UE,Housing Services,HS001,B&B Payments,1303,18/09/2018,17/09/2018,TRAVELODGE GB0000,THAME,,OX9 3AT,REDACTED,556*********6959,3615,TRAVELODGE,224,Pound Sterling (826),1,224,Debit,5.55044E+22,02/10/2018,GLOUCESTER CC
Gloucester City Council,23UE,Housing Services,HS001,B&B Payments,1303,18/09/2018,17/09/2018,TRAVELODGE GB0000,THAME,,OX9 3AT,REDACTED,556*********6959,3615,TRAVELODGE,224,Pound Sterling (826),1,224,Debit,5.55044E+22,02/10/2018,GLOUCESTER CC
Gloucester City Council,23UE,Housing Services,HS001,B&B Payments,1303,18/09/2018,17/09/2018,TRAVELODGE GB0000,THAME,,OX9 3AT,REDACTED,556*********6959,3615,TRAVELODGE,212,Pound Sterling (826),1,212,Debit,5.55044E+22,02/10/2018,GLOUCESTER CC
Gloucester City Council,23UE,Housing Services,HS001,B&B Payments,1303,18/09/2018,17/09/2018,TRAVELODGE GB0000,THAME,,OX9 3AT,REDACTED,556*********6959,3615,TRAVELODGE,286,Pound Sterling (826),1,286,Debit,5.55044E+22,02/10/2018,GLOUCESTER CC
Gloucester City Council,23UE,Housing Services,HS001,B&B Payments,1303,18/09/2018,17/09/2018,TRAVELODGE GB0000,THAME,,OX9 3AT,REDACTED,556*********6959,3615,TRAVELODGE,-286,Pound Sterling (826),1,-286,Credit,5.55044E+22,02/10/2018,GLOUCESTER CC
Gloucester City Council,23UE,Housing Services,HS001,B&B Payments,1303,19/09/2018,17/09/2018,PREMIER INN 44537895,GLOUCESTER,,GL1 5SF,REDACTED,556*********6959,3811,PREMIER INN,320,Pound Sterling (826),1,320,Debit,5.5542E+22,02/10/2018,GLOUCESTER CC
Gloucester City Council,23UE,Housing Services,HS001,B&B Payments,1303,19/09/2018,18/09/2018,TRAVELODGE GB0000,THAME,,OX9 3AT,REDACTED,556*********6959,3615,TRAVELODGE,332,Pound Sterling (826),1,332,Debit,5.55044E+22,02/10/2018,GLOUCESTER CC
Gloucester City Council,23UE,Housing Services,HS001,B&B Payments,1303,19/09/2018,18/09/2018,TRAVELODGE GB0000,THAME,,OX9 3AT,REDACTED,556*********6959,3615,TRAVELODGE,62,Pound Sterling (826),1,62,Debit,5.55044E+22,02/10/2018,GLOUCESTER CC
Gloucester City Council,23UE,Housing Services,HS001,B&B Payments,1303,19/09/2018,18/09/2018,TRAVELODGE GB0000,THAME,,OX9 3AT,REDACTED,556*********6959,3615,TRAVELODGE,232,Pound Sterling (826),1,232,Debit,5.55044E+22,02/10/2018,GLOUCESTER CC
Gloucester City Council,23UE,Housing Services,HS001,B&B Payments,1303,19/09/2018,18/09/2018,TRAVELODGE GB0000,THAME,,OX9 3AT,REDACTED,556*********6959,3615,TRAVELODGE,217,Pound Sterling (826),1,217,Debit,5.55044E+22,02/10/2018,GLOUCESTER CC
Gloucester City Council,23UE,Housing Services,HS001,B&B Payments,1303,19/09/2018,18/09/2018,TRAVELODGE GB0000,THAME,,OX9 3AT,REDACTED,556*********6959,3615,TRAVELODGE,232,Pound Sterling (826),1,232,Debit,5.55044E+22,02/10/2018,GLOUCESTER CC
Gloucester City Council,23UE,Housing Services,HS001,B&B Payments,1303,19/09/2018,18/09/2018,TRAVELODGE GB0000,THAME,,OX9 3AT,REDACTED,556*********6959,3615,TRAVELODGE,-232,Pound Sterling (826),1,-232,Credit,5.55044E+22,02/10/2018,GLOUCESTER CC
Gloucester City Council,23UE,Housing Services,HS001,B&B Payments,1303,21/09/2018,20/09/2018,TRAVELODGE GB0000,THAME,,OX9 3AT,REDACTED,556*********6959,3615,TRAVELODGE,224,Pound Sterling (826),1,224,Debit,5.55044E+22,02/10/2018,GLOUCESTER CC
Gloucester City Council,23UE,Housing Services,HS001,B&B Payments,1303,21/09/2018,20/09/2018,HIE GLOUCESTER SOUTH,GLOUCESTER,GBR,GL2 2AB,REDACTED,556*********6959,3501,HOLIDAY INNS,261.6,Pound Sterling (826),1,261.6,Debit,5.51842E+22,02/10/2018,GLOUCESTER CC
Gloucester City Council,23UE,Housing Services,HS001,B&B Payments,1303,24/09/2018,21/09/2018,TRAVELODGE GB0000,THAME,,OX9 3AT,REDACTED,556*********6959,3615,TRAVELODGE,172,Pound Sterling (826),1,172,Debit,5.55044E+22,02/10/2018,GLOUCESTER CC
Gloucester City Council,23UE,Housing Services,HS001,B&B Payments,1303,24/09/2018,21/09/2018,TRAVELODGE GB0000,THAME,,OX9 3AT,REDACTED,556*********6959,3615,TRAVELODGE,157,Pound Sterling (826),1,157,Debit,5.55044E+22,02/10/2018,GLOUCESTER CC
Gloucester City Council,23UE,Housing Services,HS001,B&B Payments,1303,24/09/2018,21/09/2018,TRAVELODGE GB0000,THAME,,OX9 3AT,REDACTED,556*********6959,3615,TRAVELODGE,648,Pound Sterling (826),1,648,Debit,5.55044E+22,02/10/2018,GLOUCESTER CC
Gloucester City Council,23UE,Housing Services,HS001,B&B Payments,1303,24/09/2018,21/09/2018,TRAVELODGE GB0000,THAME,,OX9 3AT,REDACTED,556*********6959,3615,TRAVELODGE,183,Pound Sterling (826),1,183,Debit,5.55044E+22,02/10/2018,GLOUCESTER CC
Gloucester City Council,23UE,Housing Services,HS001,B&B Payments,1303,24/09/2018,21/09/2018,TRAVELODGE GB0000,THAME,,OX9 3AT,REDACTED,556*********6959,3615,TRAVELODGE,183,Pound Sterling (826),1,183,Debit,5.55044E+22,02/10/2018,GLOUCESTER CC
Gloucester City Council,23UE,Housing Services,HS001,B&B Payments,1303,24/09/2018,21/09/2018,TRAVELODGE GB0000,THAME,,OX9 3AT,REDACTED,556*********6959,3615,TRAVELODGE,183,Pound Sterling (826),1,183,Debit,5.55044E+22,02/10/2018,GLOUCESTER CC
Gloucester City Council,23UE,Housing Services,HS001,B&B Payments,1303,24/09/2018,21/09/2018,TRAVELODGE GB0000,THAME,,OX9 3AT,REDACTED,556*********6959,3615,TRAVELODGE,-286,Pound Sterling (826),1,-286,Credit,5.55044E+22,02/10/2018,GLOUCESTER CC
Gloucester City Council,23UE,Housing Services,HS001,B&B Payments,1303,25/09/2018,24/09/2018,TRAVELODGE GB0000,THAME,,OX9 3AT,REDACTED,556*********6959,3615,TRAVELODGE,432,Pound Sterling (826),1,432,Debit,5.55044E+22,02/10/2018,GLOUCESTER CC
Gloucester City Council,23UE,Housing Services,HS001,B&B Payments,1303,25/09/2018,24/09/2018,TRAVELODGE GB0000,THAME,,OX9 3AT,REDACTED,556*********6959,3615,TRAVELODGE,486,Pound Sterling (826),1,486,Debit,5.55044E+22,02/10/2018,GLOUCESTER CC
Gloucester City Council,23UE,Housing Services,HS001,B&B Payments,1303,25/09/2018,24/09/2018,TRAVELODGE GB0000,THAME,,OX9 3AT,REDACTED,556*********6959,3615,TRAVELODGE,74,Pound Sterling (826),1,74,Debit,5.55044E+22,02/10/2018,GLOUCESTER CC
Gloucester City Council,23UE,Housing Services,HS001,B&B Payments,1303,25/09/2018,24/09/2018,TRAVELODGE GB0000,THAME,,OX9 3AT,REDACTED,556*********6959,3615,TRAVELODGE,615,Pound Sterling (826),1,615,Debit,5.55044E+22,02/10/2018,GLOUCESTER CC
Gloucester City Council,23UE,Housing Services,HS001,B&B Payments,1303,26/09/2018,25/09/2018,TRAVELODGE GB0000,THAME,,OX9 3AT,REDACTED,556*********6959,3615,TRAVELODGE,67,Pound Sterling (826),1,67,Debit,5.55044E+22,02/10/2018,GLOUCESTER CC
Gloucester City Council,23UE,Housing Services,HS001,B&B Payments,1303,26/09/2018,25/09/2018,TRAVELODGE GB0000,THAME,,OX9 3AT,REDACTED,556*********6959,3615,TRAVELODGE,141,Pound Sterling (826),1,141,Debit,5.55044E+22,02/10/2018,GLOUCESTER CC
Gloucester City Council,23UE,Housing Services,HS001,B&B Payments,1303,26/09/2018,25/09/2018,TRAVELODGE GB0000,THAME,,OX9 3AT,REDACTED,556*********6959,3615,TRAVELODGE,58,Pound Sterling (826),1,58,Debit,5.55044E+22,02/10/2018,GLOUCESTER CC
Gloucester City Council,23UE,Housing Services,HS001,B&B Payments,1303,26/09/2018,25/09/2018,TRAVELODGE GB0000,THAME,,OX9 3AT,REDACTED,556*********6959,3615,TRAVELODGE,367,Pound Sterling (826),1,367,Debit,5.55044E+22,02/10/2018,GLOUCESTER CC
Gloucester City Council,23UE,Housing Services,HS001,B&B Payments,1303,26/09/2018,25/09/2018,TRAVELODGE GB0000,THAME,,OX9 3AT,REDACTED,556*********6959,3615,TRAVELODGE,488,Pound Sterling (826),1,488,Debit,5.55044E+22,02/10/2018,GLOUCESTER CC
Gloucester City Council,23UE,Housing Services,HS001,B&B Payments,1303,27/09/2018,26/09/2018,TRAVELODGE GB0000,THAME,,OX9 3AT,REDACTED,556*********6959,3615,TRAVELODGE,204,Pound Sterling (826),1,204,Debit,5.55044E+22,02/10/2018,GLOUCESTER CC
Gloucester City Council,23UE,Housing Services,HS001,B&B Payments,1303,28/09/2018,27/09/2018,TRAVELODGE GB0000,THAME,,OX9 3AT,REDACTED,556*********6959,3615,TRAVELODGE,266,Pound Sterling (826),1,266,Debit,5.55044E+22,02/10/2018,GLOUCESTER CC
Gloucester City Council,23UE,Housing Services,HS001,B&B Payments,1303,28/09/2018,27/09/2018,TRAVELODGE GB0000,THAME,,OX9 3AT,REDACTED,556*********6959,3615,TRAVELODGE,62,Pound Sterling (826),1,62,Debit,5.55044E+22,02/10/2018,GLOUCESTER CC
Gloucester City Council,23UE,Housing Services,HS001,B&B Payments,1303,28/09/2018,27/09/2018,TRAVELODGE GB0000,THAME,,OX9 3AT,REDACTED,556*********6959,3615,TRAVELODGE,-594,Pound Sterling (826),1,-594,Credit,5.55044E+22,02/10/2018,GLOUCESTER CC
Gloucester City Council,23UE,Housing Services,HS001,B&B Payments,1303,02/10/2018,01/10/2018,TRAVELODGE GB0000,THAME,,OX9 3AT,REDACTED,556*********6959,3615,TRAVELODGE,454,Pound Sterling (826),1,454,Debit,5.55044E+22,02/10/2018,GLOUCESTER CC
Gloucester City Council,23UE,Housing Services,HS001,B&B Payments,1303,02/10/2018,01/10/2018,TRAVELODGE GB0000,THAME,,OX9 3AT,REDACTED,556*********6959,3615,TRAVELODGE,283,Pound Sterling (826),1,283,Debit,5.55044E+22,02/10/2018,GLOUCESTER CC
Gloucester City Council,23UE,Housing Services,HS001,B&B Payments,1303,02/10/2018,01/10/2018,TRAVELODGE GB0000,THAME,,OX9 3AT,REDACTED,556*********6959,3615,TRAVELODGE,-454,Pound Sterling (826),1,-454,Credit,5.55044E+22,02/10/2018,GLOUCESTER CC
Gloucester City Council,23UE,Gloucester Guildhall,GH001,General Supplies/Materials,3025,04/09/2018,03/09/2018,Helloprint,Rotterdam,NLD,3012 BG,REDACTED,556*********8256,7338,QUICK-COPY AND REPRODUCTION SERVICES,136.74,Pound Sterling (826),1,136.74,Debit,1.52657E+22,02/10/2018,GLOUCESTER CC
Gloucester City Council,23UE,Gloucester Guildhall,GH001,General Supplies/Materials,3025,04/09/2018,03/09/2018,WWW.INSTANTPRINT.C,01709 382202,,S63 5DR,REDACTED,556*********8256,7338,QUICK-COPY AND REPRODUCTION SERVICES,78,Pound Sterling (826),1,78,Debit,8.54815E+22,02/10/2018,GLOUCESTER CC
Gloucester City Council,23UE,Gloucester Guildhall,GH001,General Supplies/Materials,3025,05/09/2018,04/09/2018,FACEBK *U442WGAAX2,fb.me/ads,IRL,UNKNOWN,REDACTED,556*********8256,7311,ADVERTISING SERVICES,38.71,Pound Sterling (826),1,38.71,Debit,5.52047E+22,02/10/2018,GLOUCESTER CC
Gloucester City Council,23UE,Gloucester Guildhall,GH001,General Supplies/Materials,3025,05/09/2018,04/09/2018,WWW.INSTANTPRINT.C,01709 382202,,S63 5DR,REDACTED,556*********8256,7338,QUICK-COPY AND REPRODUCTION SERVICES,130,Pound Sterling (826),1,130,Debit,8.54815E+22,02/10/2018,GLOUCESTER CC
Gloucester City Council,23UE,Gloucester Guildhall,GH001,General Supplies/Materials,3025,06/09/2018,05/09/2018,AMZN MKTP UK AMAZON.CO,AMAZON.CO.UK,LUX,,REDACTED,556*********8256,5942,BOOK STORES,27.98,Pound Sterling (826),1,27.98,Debit,8.53892E+22,02/10/2018,GLOUCESTER CC
Gloucester City Council,23UE,Gloucester Guildhall,GH001,General Supplies/Materials,3025,12/09/2018,11/09/2018,WWW.INSTANTPRINT.C,01709 382202,,S63 5DR,REDACTED,556*********8256,7338,QUICK-COPY AND REPRODUCTION SERVICES,31.99,Pound Sterling (826),1,31.99,Debit,8.54815E+22,02/10/2018,GLOUCESTER CC
Gloucester City Council,23UE,Gloucester Guildhall,GH001,General Supplies/Materials,3025,14/09/2018,13/09/2018,SILVERBACK TRAINING UK,MANCHESTER,GBR,M12 5BT,REDACTED,556*********8256,8249,VOCATIONAL AND TRADE SCHOOLS,275.6,Pound Sterling (826),1,275.6,Debit,5.27247E+21,02/10/2018,GLOUCESTER CC
Gloucester City Council,23UE,Gloucester Guildhall,GH001,General Supplies/Materials,3025,14/09/2018,13/09/2018,SILVERBACK TRAINING UK,MANCHESTER,GBR,M12 5BT,REDACTED,556*********8256,8249,VOCATIONAL AND TRADE SCHOOLS,250,Pound Sterling (826),1,250,Debit,5.27247E+21,02/10/2018,GLOUCESTER CC
Gloucester City Council,23UE,Gloucester Guildhall,GH001,General Supplies/Materials,3025,17/09/2018,14/09/2018,WORDPRESS 4C7S2FJ9EY,8772733049,CA,94110,REDACTED,556*********8256,7372,COMPUTER AND DATA PROCESSING SERVICES,36,Pound Sterling (826),1,36,Debit,5.54295E+22,02/10/2018,GLOUCESTER CC
Gloucester City Council,23UE,Gloucester Guildhall,GH001,General Supplies/Materials,3025,18/09/2018,17/09/2018,MIPERMIT LTD,INTERNET,GBR,SN15 5FD,REDACTED,556*********8256,7523,AUTOMOBILE PARKING LOTS AND GARAGES,40,Pound Sterling (826),1,40,Debit,2.54252E+22,02/10/2018,GLOUCESTER CC
Gloucester City Council,23UE,Gloucester Guildhall,GH001,General Supplies/Materials,3025,18/09/2018,10/09/2018,MIPERMIT LTD,INTERNET,GBR,SN15 5FD,REDACTED,556*********8256,7523,AUTOMOBILE PARKING LOTS AND GARAGES,10,Pound Sterling (826),1,10,Debit,2.54252E+22,02/10/2018,GLOUCESTER CC
Gloucester City Council,23UE,Gloucester Guildhall,GH001,General Supplies/Materials,3025,18/09/2018,17/09/2018,WWW.INSTANTPRINT.C,01709 382202,,S63 5DR,REDACTED,556*********8256,7338,QUICK-COPY AND REPRODUCTION SERVICES,4.99,Pound Sterling (826),1,4.99,Debit,8.54815E+22,02/10/2018,GLOUCESTER CC
Gloucester City Council,23UE,Gloucester Guildhall,GH001,General Supplies/Materials,3025,19/09/2018,18/09/2018,MAILCHIMP *MONTHLY,MAILCHIMP.COM,GA,30308,REDACTED,556*********8256,5968,CONTINUITY/SUBSCRIPTION MERCHANTS,15.43,Pound Sterling (826),1,15.43,Debit,5.54254E+22,02/10/2018,GLOUCESTER CC
Gloucester City Council,23UE,Gloucester Guildhall,GH001,General Supplies/Materials,3025,19/09/2018,18/09/2018,FACEBK *KEVACJ2AX2,fb.me/ads,IRL,UNKNOWN,REDACTED,556*********8256,7311,ADVERTISING SERVICES,261.91,Pound Sterling (826),1,261.91,Debit,5.52047E+22,02/10/2018,GLOUCESTER CC
Gloucester City Council,23UE,Gloucester Guildhall,GH001,General Supplies/Materials,3025,20/09/2018,19/09/2018,WRISTBANDS.CO.UK,EYE,LND,IP23 7AJ,REDACTED,556*********8256,5699,MISCELLANEOUS APPAREL AND ACCESSORY STOR,140.4,Pound Sterling (826),1,140.4,Debit,8.53839E+22,02/10/2018,GLOUCESTER CC
Gloucester City Council,23UE,Gloucester Guildhall,GH001,General Supplies/Materials,3025,20/09/2018,19/09/2018,WWW.INSTANTPRINT.C,01709 382202,,S63 5DR,REDACTED,556*********8256,7338,QUICK-COPY AND REPRODUCTION SERVICES,15.99,Pound Sterling (826),1,15.99,Debit,8.54815E+22,02/10/2018,GLOUCESTER CC
Gloucester City Council,23UE,Gloucester Guildhall,GH001,General Supplies/Materials,3025,24/09/2018,22/09/2018,FACEBK *JFALHHWAG2,fb.me/ads,IRL,UNKNOWN,REDACTED,556*********8256,7311,ADVERTISING SERVICES,8.6,Pound Sterling (826),1,8.6,Debit,5.52047E+22,02/10/2018,GLOUCESTER CC
Gloucester City Council,23UE,Gloucester Guildhall,GH001,General Supplies/Materials,3025,26/09/2018,25/09/2018,WWW.INSTANTPRINT.C,01709 382202,,S63 5DR,REDACTED,556*********8256,7338,QUICK-COPY AND REPRODUCTION SERVICES,25.99,Pound Sterling (826),1,25.99,Debit,8.54815E+22,02/10/2018,GLOUCESTER CC
Gloucester City Council,23UE,Gloucester Guildhall,GH001,General Supplies/Materials,3025,01/10/2018,27/09/2018,STAGEDEPOT.CO.UK,0117 3250336,,BS4 5QR,REDACTED,556*********8256,5251,HARDWARE STORES,41.98,Pound Sterling (826),1,41.98,Debit,8.54815E+22,02/10/2018,GLOUCESTER CC
Gloucester City Council,23UE,Gloucester Guildhall,GH001,General Supplies/Materials,3025,02/10/2018,01/10/2018,THE HOME OFFICE,NEWPORT,GBR,NP10 8FZ,REDACTED,556*********8256,9399,GOVERNMENT SERVICES NOT ELSEWHERE CLASSIFIED,200,Pound Sterling (826),1,200,Debit,2.54252E+22,02/10/2018,GLOUCESTER CC
Gloucester City Council,23UE,Council Streetcare Team,NE002,External Training Course Fees,550,10/09/2018,07/09/2018,R H ENVIRONMENTAL LTD,LLANDYSUL,LND,SA44 5WX,REDACTED,556*********3063,5734,COMPUTER SOFTWARE STORES,190.8,Pound Sterling (826),1,190.8,Debit,8.53839E+22,02/10/2018,GLOUCESTER CC
Gloucester City Council,23UE,Council Streetcare Team,NE002,Public Transport - Staff,2402,12/09/2018,11/09/2018,GWR WEBSALES,SWINDON,,SN1 1HL,REDACTED,556*********3063,4112,PASSENGER RAILWAYS,126,Pound Sterling (826),1,126,Debit,5.55044E+22,02/10/2018,GLOUCESTER CC
Gloucester City Council,23UE,Cemeteries,CC004,Vehicle Insurance,2202,12/09/2018,11/09/2018,DVLA VEHICLE TAX,0300 1234321,,SA6 7JL,REDACTED,556*********3063,9399,GOVERNMENT SERVICES NOT ELSEWHERE CLASSIFIED,252.5,Pound Sterling (826),1,252.5,Debit,8.54815E+22,02/10/2018,GLOUCESTER CC
Gloucester City Council,23UE,Planning Policy & Heritage,PL004,Public Transport - Staff,2402,13/09/2018,12/09/2018,Trainline,London,GBR,1445,REDACTED,556*********3063,4112,PASSENGER RAILWAYS,13.8,Pound Sterling (826),1,13.8,Debit,8.51301E+22,02/10/2018,GLOUCESTER CC
Gloucester City Council,23UE,Planning Policy & Heritage,PL004,Public Transport - Staff,2402,20/09/2018,19/09/2018,Trainline,London,GBR,1445,REDACTED,556*********3063,4112,PASSENGER RAILWAYS,87,Pound Sterling (826),1,87,Debit,8.51301E+22,02/10/2018,GLOUCESTER CC
Gloucester City Council,23UE,Civica Admin Charges,BI002,Professional Advice/Consultants fees,3952,20/09/2018,19/09/2018,HMCOURTS-SERVICE.G,1452420100,,GL12ZG,REDACTED,556*********3063,9222,FINES,362.5,Pound Sterling (826),1,362.5,Debit,8.54815E+22,02/10/2018,GLOUCESTER CC
Gloucester City Council,23UE,Business Transformation,BI006,Equipment and Furniture,3001,21/09/2018,20/09/2018,AMZN Mktp UK,800-279-6620,LUX,L2338,REDACTED,556*********3063,5942,BOOK STORES,5.98,Pound Sterling (826),1,5.98,Debit,5.52047E+22,02/10/2018,GLOUCESTER CC
Gloucester City Council,23UE,Business Transformation,BI006,Equipment and Furniture,3001,24/09/2018,23/09/2018,AMZN Mktp UK,800-279-6620,LUX,L2338,REDACTED,556*********3063,5942,BOOK STORES,15.99,Pound Sterling (826),1,15.99,Debit,5.52047E+22,02/10/2018,GLOUCESTER CC
Gloucester City Council,23UE,Planning Policy & Heritage,PL004,Public Transport - Staff,2402,25/09/2018,24/09/2018,Trainline,London,GBR,1445,REDACTED,556*********3063,4112,PASSENGER RAILWAYS,84.7,Pound Sterling (826),1,84.7,Debit,8.51301E+22,02/10/2018,GLOUCESTER CC
Gloucester City Council,23UE,Business Transformation,BI006,CT New System Software,3522,27/09/2018,26/09/2018,INTESETSYST,7818261560,MA,2339,REDACTED,556*********3063,5734,COMPUTER SOFTWARE STORES,149.7,US Dollar (840),1.276323642,117.29,Debit,5.54295E+22,02/10/2018,GLOUCESTER CC
Gloucester City Council,23UE,Planning Policy & Heritage,PL004,Public Transport - Staff,2402,01/10/2018,28/09/2018,GWR WEBSALES,SWINDON,,SN1 1HL,REDACTED,556*********3063,4112,PASSENGER RAILWAYS,21.3,Pound Sterling (826),1,21.3,Debit,5.55044E+22,02/10/2018,GLOUCESTER CC
